bitfinex/quotes_BTCUSD_20241229
["timestamp","ask_amount","ask_price","bid_price","bid_amount"]
[1735445150069,2.8767506,95375.0,95374.0,6.96464039]
[1735445150283,2.7034166,95375.0,95374.0,6.96464039]
[1735445151566,2.6904166,95375.0,95374.0,6.96464039]
[1735445151856,2.7024166,95375.0,95374.0,6.96564039]
[1735445152699,2.6984166,95375.0,95374.0,6.96564039]
[1735445153061,2.7024166,95375.0,95374.0,6.96564039]
[1735445154526,2.80563998,95375.0,95374.0,6.96564039]
[1735445157263,2.58549994,95375.0,95374.0,6.96564039]
[1735445157466,2.59711983,95375.0,95374.0,6.96564039]
[1735445158262,2.59720523,95375.0,95374.0,6.96564039]
[1735445160049,2.59720523,95375.0,95374.0,6.95947492]
[1735445160296,2.59720523,95375.0,95374.0,6.95540929]
[1735445160462,2.61366109,95375.0,95374.0,6.95540929]
[1735445162903,2.59720523,95375.0,95374.0,6.95540929]
[1735445163673,0.12692867,95375.0,95374.0,6.95540929]
[1735445164088,2.87429578,95375.0,95374.0,6.95540929]
[1735445164295,2.88591288,95375.0,95374.0,6.95540929]
[1735445165838,2.90236874,95375.0,95374.0,6.95540929]
[1735445166195,2.88591288,95375.0,95374.0,6.95540929]
[1735445168684,2.88591288,95375.0,95374.0,6.94889104]
[1735445169130,2.90236874,95375.0,95374.0,6.94889104]
[1735445174400,2.79914536,95375.0,95374.0,6.94889104]
[1735445176455,2.7826895,95375.0,95374.0,6.94889104]
[1735445178458,2.7539415,95375.0,95374.0,6.94889104]
[1735445179323,2.77039736,95375.0,95374.0,6.94889104]
[1735445179856,2.87362074,95375.0,95374.0,7.02589104]
[1735445180816,2.72941074,95375.0,95374.0,7.02589104]
[1735445181225,2.62618736,95375.0,95374.0,7.02589104]
[1735445183339,2.37843636,95375.0,95374.0,7.02589104]
[1735445184033,2.37843636,95375.0,95374.0,6.94889104]
[1735445186302,2.48165974,95375.0,95374.0,6.94889104]
[1735445195448,0.14338174,95375.0,95374.0,6.94889104]
[1735445195584,2.758987,95375.0,95374.0,6.94889104]
[1735445195779,2.53469191,95378.0,95374.0,6.94889104]
[1735445195985,0.00967978,95375.0,95374.0,6.94889104]
[1735445196206,2.534692,95375.0,95374.0,6.94889104]
[1735445196412,2.54275809,95375.0,95374.0,6.94889104]
[1735445196609,2.54275809,95375.0,95374.0,6.94789104]
[1735445196950,2.54275809,95375.0,95374.0,6.94889104]
[1735445197355,2.54275809,95375.0,95374.0,6.94789104]
[1735445197560,2.55075809,95375.0,95374.0,6.94889104]
[1735445198674,2.55375809,95375.0,95374.0,6.94889104]
[1735445199305,2.57021395,95375.0,95374.0,6.94889104]
[1735445203670,2.57029935,95375.0,95374.0,6.94889104]
[1735445208605,0.01915149,95375.0,95374.0,6.94889104]
[1735445208806,2.55384349,95375.0,95374.0,6.94889104]
[1735445209005,2.5457774,95375.0,95374.0,6.94889104]
[1735445209203,2.55384522,95375.0,95374.0,6.94889104]
[1735445211626,2.57030108,95375.0,95374.0,6.94889104]
[1735445212320,2.55384522,95375.0,95374.0,6.94889104]
[1735445214698,2.57030108,95375.0,95374.0,6.94889104]
[1735445220496,2.06867408,95375.0,95374.0,7.02939104]
[1735445220706,2.05221822,95375.0,95374.0,7.02939104]
[1735445221824,2.04121822,95375.0,95374.0,7.02839104]
[1735445222167,2.05121822,95375.0,95374.0,7.02939104]
[1735445222364,2.06767361,95375.0,95374.0,7.02839104]
[1735445222613,2.06467361,95375.0,95374.0,7.02839104]
[1735445222808,2.07167361,95375.0,95374.0,7.02939104]
[1735445223245,2.07467361,95375.0,95374.0,7.02939104]
[1735445224527,2.57630061,95375.0,95374.0,7.02939104]
[1735445224725,0.04160861,95375.0,95374.0,7.02939104]
[1735445225133,2.50393961,95375.0,95374.0,7.02939104]
[1735445225337,2.50890961,95375.0,95374.0,7.02939104]
[1735445227523,2.49245422,95375.0,95374.0,7.02939104]
[1735445229341,2.48186722,95375.0,95374.0,7.02939104]
[1735445230099,2.43456122,95375.0,95374.0,7.02939104]
[1735445230313,2.28905722,95375.0,95374.0,7.02939104]
[1735445230529,2.30551308,95375.0,95374.0,7.02939104]
[1735445233131,2.30551308,95375.0,95374.0,6.94889104]
[1735445235583,1.90677908,95375.0,95374.0,6.94889104]
[1735445235842,1.89545108,95375.0,95374.0,6.94889104]
[1735445236596,2.56680708,95375.0,95374.0,6.94889104]
[1735445236799,2.56680708,95375.0,95374.0,7.02669104]
[1735445236800,1.89390208,95375.0,95374.0,7.02669104]
[1735445236969,1.70658308,95375.0,95374.0,7.02669104]
[1735445237592,1.69012722,95375.0,95374.0,7.02669104]
[1735445240653,1.70658308,95375.0,95374.0,7.02669104]
[1735445242809,1.69012722,95375.0,95374.0,7.02669104]
[1735445243741,1.70658308,95375.0,95374.0,7.02669104]
[1735445252818,1.69012722,95375.0,95374.0,7.02669104]
[1735445253818,1.70658308,95375.0,95374.0,7.02669104]
[1735445263001,1.69012722,95375.0,95374.0,7.02669104]
[1735445263297,1.69012722,95375.0,95374.0,6.94889104]
[1735445265955,1.70658308,95375.0,95374.0,6.94889104]
[1735445272971,1.69012722,95375.0,95374.0,6.94889104]
[1735445275982,1.70658308,95375.0,95374.0,6.94889104]
[1735445278131,1.70658308,95375.0,95374.0,6.93910104]
[1735445280198,0.04160908,95375.0,95374.0,6.93910104]
[1735445280405,2.53539526,95375.0,95374.0,6.93910104]
[1735445280630,0.04049772,95375.0,95374.0,6.93910104]
[1735445280831,2.57518972,95375.0,95374.0,6.93910104]
[1735445281482,2.34377372,95375.0,95374.0,7.01480104]
[1735445281816,2.17517972,95375.0,95374.0,7.01480104]
[1735445282991,2.04227386,95375.0,95374.0,7.01480104]
[1735445285822,2.05872972,95375.0,95374.0,7.01480104]
[1735445287358,2.04227386,95375.0,95374.0,7.01480104]
[1735445289561,2.04227386,95375.0,95374.0,7.011523]
[1735445290074,2.05872972,95375.0,95374.0,7.011523]
[1735445293026,2.04227386,95375.0,95374.0,7.011523]
[1735445296093,2.01517886,95375.0,95374.0,7.011523]
[1735445297487,0.02404186,95375.0,95374.0,7.058223]
[1735445297900,0.0170854,95375.0,95374.0,7.058223]
[1735445298084,2.55737913,95375.0,95374.0,7.058223]
[1735445298721,2.55437913,95375.0,95374.0,7.058223]
[1735445299450,2.54037913,95375.0,95374.0,7.057223]
[1735445299675,2.55883409,95375.0,95374.0,7.057223]
[1735445299889,2.55683409,95375.0,95374.0,7.057223]
[1735445300228,2.55783409,95375.0,95374.0,7.057223]
[1735445307644,2.54137913,95375.0,95374.0,7.057223]
[1735445310569,2.55783409,95375.0,95374.0,7.057223]
[1735445310766,0.02314209,95375.0,95374.0,7.057223]
[1735445310904,2.55783409,95375.0,95374.0,7.057223]
[1735445311682,2.54137913,95375.0,95374.0,7.057223]
[1735445314632,2.54137913,95375.0,95374.0,7.010523]
[1735445314952,2.54137913,95375.0,95374.0,6.934823]
[1735445319624,1.34033313,95375.0,95374.0,6.934823]
[1735445321463,1.28015713,95375.0,95374.0,6.934823]
[1735445321626,1.29661259,95375.0,95374.0,6.934823]
[1735445324909,1.61594022,95375.0,95374.0,6.934823]
[1735445328315,0.34247022,95375.0,95374.0,6.934823]
[1735445328708,0.01754086,95375.0,95374.0,6.934823]
[1735445329080,1.77602365,95375.0,95374.0,6.934823]
[1735445329285,0.02305165,95375.0,95374.0,6.934823]
[1735445329487,1.77589465,95375.0,95374.0,6.934823]
[1735445329714,0.02305165,95375.0,95374.0,6.934823]
[1735445330275,2.01278765,95375.0,95374.0,6.934823]
[1735445330496,0.02305165,95375.0,95374.0,6.934823]
[1735445330725,1.77589465,95375.0,95374.0,6.934823]
[1735445334993,1.77589465,95375.0,95374.0,6.9319532]
[1735445337311,1.42325865,95375.0,95374.0,6.9319532]
[1735445337900,1.38289465,95375.0,95374.0,6.9319532]
[1735445338684,0.02305165,95375.0,95374.0,6.9319532]
[1735445338890,2.46994065,95375.0,95374.0,6.9319532]
[1735445339185,2.08881686,95375.0,95374.0,6.9319532]
[1735445339384,1.80623965,95375.0,95374.0,6.9319532]
[1735445339574,1.64475165,95375.0,95374.0,6.9319532]
[1735445343089,1.62846865,95375.0,95374.0,6.9319532]
[1735445346346,1.62746865,95375.0,95374.0,6.9319532]
[1735445346684,1.63146865,95375.0,95374.0,6.9319532]
[1735445347434,1.95100812,95375.0,95374.0,6.9319532]
[1735445349567,1.63146865,95375.0,95374.0,6.9319532]
[1735445352975,1.61501319,95375.0,95374.0,6.9319532]
[1735445356452,1.63146865,95375.0,95374.0,6.9319532]
[1735445357136,1.45642524,95375.0,95374.0,6.9319532]
[1735445358490,1.45642524,95375.0,95374.0,6.9209332]
[1735445363528,1.45642524,95375.0,95374.0,6.91612096]
[1735445365200,1.45651064,95375.0,95374.0,6.91612096]
[1735445366576,0.02054086,95375.0,95374.0,6.91612096]
[1735445367063,2.38578586,95375.0,95374.0,6.91612096]
[1735445367297,0.02054086,95375.0,95374.0,6.91612096]
[1735445367742,2.38578586,95375.0,95374.0,6.91612096]
[1735445368476,2.70539902,95375.0,95374.0,6.91612096]
[1735445369526,2.38578586,95375.0,95374.0,6.91612096]
[1735445370676,2.3693304,95375.0,95374.0,6.91612096]
[1735445371543,2.68898987,95375.0,95374.0,6.91612096]
[1735445373556,2.70544554,95375.0,95374.0,6.91612096]
[1735445374555,2.38578607,95375.0,95374.0,6.91612096]
[1735445383015,2.3693304,95375.0,95374.0,6.91612096]
[1735445384494,0.0040854,95375.0,95374.0,6.91612096]
[1735445385421,2.3693304,95375.0,95374.0,6.91612096]
[1735445385919,2.38578607,95375.0,95374.0,6.91612096]
[1735445388140,2.38578607,95375.0,95374.0,6.91231673]
[1735445390365,2.38478607,95375.0,95374.0,6.91231673]
[1735445390570,2.38178607,95375.0,95374.0,6.91231673]
[1735445390798,2.38778607,95375.0,95374.0,6.91231673]
[1735445391395,2.39178607,95375.0,95374.0,6.91231673]
[1735445391775,2.38978607,95375.0,95374.0,6.91231673]
[1735445392583,2.38978607,95375.0,95374.0,6.90908673]
[1735445393010,2.3733304,95375.0,95374.0,6.90908673]
[1735445393224,2.3753304,95375.0,95374.0,6.90908673]
[1735445396123,2.39178607,95375.0,95374.0,6.90908673]
[1735445403005,2.3753304,95375.0,95374.0,6.90908673]
[1735445403825,2.38023899,95375.0,95374.0,6.90908673]
[1735445407585,2.38023899,95375.0,95374.0,6.90640673]
[1735445411246,2.38023899,95375.0,95374.0,6.85175496]
[1735445411855,2.38023899,95375.0,95374.0,6.84121496]
[1735445412983,2.37823899,95375.0,95374.0,6.84121496]
[1735445413358,2.37023899,95375.0,95374.0,6.84121496]
[1735445413593,2.37923899,95375.0,95374.0,6.83768289]
[1735445414015,2.37623899,95375.0,95374.0,6.83768289]
[1735445414954,0.01099399,95375.0,95374.0,6.83768289]
[1735445415160,2.69577856,95375.0,95374.0,6.83768289]
[1735445415355,2.69086997,95375.0,95374.0,6.83768289]
[1735445415561,2.6957712,95375.0,95374.0,6.83768289]
[1735445415832,2.6977712,95375.0,95374.0,6.83768289]
[1735445416140,2.71422739,95375.0,95374.0,6.83768289]
[1735445417074,2.39468782,95375.0,95374.0,6.83768289]
[1735445423003,2.37823163,95375.0,95374.0,6.83768289]
[1735445429661,2.36618463,95375.0,95374.0,6.83768289]
[1735445431608,2.37167639,95375.0,95374.0,6.83768289]
[1735445436287,1.85427339,95375.0,95374.0,6.91508289]
[1735445436448,1.85427339,95375.0,95374.0,6.96408289]
[1735445437499,1.86872901,95375.0,95374.0,6.96408289]
[1735445437665,1.86872901,95375.0,95374.0,6.96308289]
[1735445438034,1.86472901,95375.0,95374.0,6.96308289]
[1735445438186,1.86272901,95375.0,95374.0,6.96308289]
[1735445438638,1.86472901,95375.0,95374.0,6.96308289]
[1735445439169,1.86972901,95375.0,95374.0,6.96308289]
[1735445442955,1.85327339,95375.0,95374.0,6.96308289]
[1735445446285,1.55476584,95375.0,95374.0,7.04488917]
[1735445446487,1.18947484,95375.0,95374.0,7.04488917]
[1735445446866,0.03393384,95375.0,95374.0,7.04488917]
[1735445447229,2.14993785,95375.0,95374.0,7.04488917]
[1735445447385,1.99139885,95375.0,95374.0,7.04488917]
[1735445447610,1.60668897,95375.0,95374.0,7.04488917]
[1735445447778,1.38754397,95375.0,95374.0,7.04788917]
[1735445447996,1.38554397,95375.0,95374.0,7.04788917]
[1735445448217,1.38554397,95375.0,95374.0,7.04488917]
[1735445448418,1.38554397,95375.0,95374.0,7.04588917]
[1735445449602,1.38554397,95375.0,95374.0,7.04888917]
[1735445449961,1.38554397,95375.0,95374.0,7.04788917]
[1735445450283,1.38554397,95375.0,95374.0,7.04688917]
[1735445450482,1.38654397,95375.0,95374.0,7.05188917]
[1735445450768,1.38654397,95375.0,95374.0,7.04988917]
[1735445451065,1.38654397,95375.0,95374.0,7.05188917]
[1735445451511,1.67038264,95375.0,95374.0,7.05188917]
[1735445452592,1.38654397,95375.0,95374.0,7.05188917]
[1735445452954,1.37008852,95375.0,95374.0,7.05188917]
[1735445456237,1.386543,95375.0,95374.0,7.05188917]
[1735445462981,1.37008852,95375.0,95374.0,7.05188917]
[1735445463513,2.37673252,95375.0,95374.0,7.05188917]
[1735445464849,2.13660452,95375.0,95374.0,7.05188917]
[1735445465488,1.63280252,95375.0,95374.0,7.05188917]
[1735445465716,1.50021752,95375.0,95374.0,7.05188917]
[1735445467545,1.51667201,95375.0,95374.0,7.05188917]
[1735445468665,1.47859701,95375.0,95374.0,7.05188917]
[1735445477285,1.46214252,95375.0,95374.0,7.05188917]
[1735445477477,1.46214252,95375.0,95374.0,7.0469358]
[1735445478069,0.01148752,95375.0,95374.0,7.0469358]
[1735445478569,2.37733668,95375.0,95374.0,7.0469358]
[1735445478712,0.01209168,95375.0,95374.0,7.0469358]
[1735445478925,2.37733668,95375.0,95374.0,7.0469358]
[1735445479157,1.57140568,95375.0,95374.0,7.0469358]
[1735445480213,1.58786017,95375.0,95374.0,7.0469358]
[1735445480728,1.27125817,95375.0,95374.0,7.0469358]
[1735445481670,0.78175219,95375.0,95374.0,7.0469358]
[1735445481875,0.76767492,95375.0,95374.0,7.24286759]
[1735445482075,0.00919719,95375.0,95374.0,7.24286759]
[1735445482451,8.54e-05,95378.0,95377.0,0.08180628]
[1735445482658,0.1018894,95378.0,95377.0,0.20780628]
[1735445482840,0.1018894,95378.0,95377.0,0.4117926]
[1735445484961,0.1018894,95378.0,95377.0,0.4157926]
[1735445485115,0.11934194,95378.0,95377.0,0.4237926]
[1735445485328,0.11934194,95378.0,95377.0,0.31980628]
[1735445486025,0.14896294,95378.0,95377.0,0.31980628]
[1735445486230,0.13516294,95378.0,95377.0,0.31980628]
[1735445487055,0.01753794,95378.0,95377.0,0.31980628]
[1735445489100,0.13283094,95378.0,95377.0,0.31980628]
[1735445489257,0.12559594,95378.0,95377.0,0.31980628]
[1735445491223,0.01753794,95378.0,95377.0,0.31980628]
[1735445491376,0.12778194,95378.0,95377.0,0.4237926]
[1735445491583,0.01753794,95378.0,95377.0,0.4237926]
[1735445491944,0.12778094,95378.0,95377.0,0.4237926]
[1735445492652,0.01753794,95378.0,95377.0,0.4237926]
[1735445492889,0.0010854,95378.0,95377.0,0.4237926]
[1735445493637,0.1113294,95378.0,95377.0,0.31980628]
[1735445493841,0.1251294,95378.0,95377.0,0.31980628]
[1735445493977,0.1113294,95378.0,95377.0,0.31980628]
[1735445494378,0.1040774,95378.0,95377.0,0.31980628]
[1735445494640,0.0010854,95378.0,95377.0,0.31980628]
[1735445495067,0.1121164,95378.0,95377.0,0.4237926]
[1735445495267,0.0010854,95378.0,95377.0,0.4237926]
[1735445495506,0.1121164,95378.0,95377.0,0.4237926]
[1735445495706,0.0010854,95378.0,95377.0,0.4237926]
[1735445495906,0.1110664,95378.0,95377.0,0.4237926]
[1735445496218,0.12751861,95378.0,95377.0,0.4237926]
[1735445496430,0.12751861,95378.0,95377.0,0.31980628]
[1735445502938,0.1110664,95378.0,95377.0,0.31980628]
[1735445506376,0.8238244,95378.0,95377.0,0.31980628]
[1735445506572,0.83306108,95378.0,95377.0,0.31980628]
[1735445506809,0.58106108,95378.0,95377.0,0.31980628]
[1735445506992,0.3718244,95378.0,95377.0,0.31980628]
[1735445507377,0.3297954,95378.0,95377.0,0.31980628]
[1735445507535,0.34624774,95378.0,95377.0,0.31980628]
[1735445507817,0.33244774,95378.0,95377.0,0.31980628]
[1735445507997,0.31305874,95378.0,95377.0,0.31980628]
[1735445508142,0.1042994,95378.0,95377.0,0.31980628]
[1735445509183,0.0010854,95378.0,95377.0,0.31980628]
[1735445509389,0.12105172,95378.0,95377.0,0.31980628]
[1735445509584,0.12000072,95378.0,95377.0,0.31980628]
[1735445512973,0.1035484,95378.0,95377.0,0.31980628]
[1735445514966,0.0010854,95378.0,95377.0,0.5237926]
[1735445516372,0.01753641,95378.0,95377.0,0.5237926]
[1735445522986,0.0010854,95378.0,95377.0,0.5237926]
[1735445525373,0.0010854,95378.0,95377.0,0.6237926]
[1735445526020,0.0010854,95378.0,95377.0,0.6197926]
[1735445526189,0.0175356,95378.0,95377.0,0.6197926]
[1735445526390,0.0165356,95378.0,95377.0,0.6117926]
[1735445526597,0.0175356,95378.0,95377.0,0.6187926]
[1735445526795,0.0185356,95378.0,95377.0,0.6277926]
[1735445527113,0.0175356,95378.0,95377.0,0.6207926]
[1735445527618,0.0185356,95378.0,95377.0,0.6287926]
[1735445529242,0.0185356,95378.0,95377.0,0.73277892]
[1735445532574,0.0185356,95378.0,95377.0,0.84357892]
[1735445542983,0.0020854,95378.0,95377.0,0.84357892]
[1735445545891,0.01853442,95378.0,95377.0,0.84357892]
[1735445553093,0.0020854,95378.0,95377.0,0.84357892]
[1735445557433,0.01853438,95378.0,95377.0,0.84357892]
[1735445560965,0.01648987,95378.0,95377.0,0.84357892]
[1735445563080,4.089e-05,95378.0,95377.0,0.84357892]
[1735445564586,4.089e-05,95378.0,95377.0,0.79427892]
[1735445566155,0.01648989,95378.0,95377.0,0.79427892]
[1735445568958,0.01657529,95378.0,95377.0,0.79427892]
[1735445569762,0.01657529,95378.0,95377.0,0.8139363]
[1735445572029,0.01657529,95378.0,95377.0,0.82376418]
[1735445572820,0.00012629,95378.0,95377.0,0.82376418]
[1735445573491,0.00012629,95378.0,95377.0,1.31291344]
[1735445574509,0.00012629,95378.0,95377.0,1.17164799]
[1735445576351,0.01657484,95378.0,95377.0,1.21864799]
[1735445577772,0.01657484,95378.0,95377.0,1.40700192]
[1735445578526,0.01657484,95378.0,95377.0,1.21864799]
[1735445578910,0.01657484,95378.0,95377.0,1.20882011]
[1735445581756,0.01657484,95378.0,95377.0,1.20899091]
[1735445582771,0.01657484,95378.0,95377.0,1.09819091]
[1735445582942,0.01657484,95378.0,95377.0,0.87050459]
[1735445583167,0.00012629,95378.0,95377.0,0.87050459]
[1735445583401,0.00012629,95378.0,95377.0,0.52262078]
[1735445583766,0.00012629,95378.0,95377.0,0.5029634]
[1735445583970,0.00012629,95378.0,95377.0,0.60694972]
[1735445584177,0.00012629,95378.0,95377.0,0.68414972]
[1735445586388,0.01657521,95378.0,95377.0,0.68414972]
[1735445588922,0.01653432,95378.0,95377.0,0.77048077]
[1735445589454,0.01853432,95378.0,95377.0,0.77948077]
[1735445589961,0.01853432,95378.0,95377.0,0.68514972]
[1735445591180,0.01853432,95378.0,95377.0,1.03330641]
[1735445592967,0.0020854,95378.0,95377.0,1.03330641]
[1735445594989,0.0020854,95378.0,95377.0,1.19330641]
[1735445596046,0.0020854,95378.0,95377.0,1.22278358]
[1735445597246,0.0020854,95378.0,95377.0,1.11198358]
[1735445597391,0.01853326,95378.0,95377.0,1.11198358]
[1735445598454,0.01853326,95378.0,95377.0,1.10215786]
[1735445598653,0.01853326,95378.0,95377.0,1.08250641]
[1735445598870,0.0801,95396.0,95388.0,0.38180628]
[1735445599477,0.01653303,95389.0,95388.0,0.38180628]
[1735445600028,0.01653303,95389.0,95388.0,0.39080628]
[1735445600472,0.01653303,95389.0,95388.0,0.39680628]
[1735445601192,0.01653303,95389.0,95388.0,0.39080628]
[1735445601385,0.01653303,95389.0,95388.0,0.42088691]
[1735445601711,0.01653303,95389.0,95388.0,0.43588691]
[1735445602203,0.01653303,95389.0,95388.0,0.42988691]
[1735445602414,8.54e-05,95389.0,95388.0,0.42988691]
[1735445603350,8.54e-05,95389.0,95388.0,0.43688691]
[1735445605363,0.01653288,95389.0,95388.0,0.43688691]
[1735445608511,0.01653288,95389.0,95388.0,0.42988691]
[1735445608694,0.01653288,95389.0,95388.0,0.43788691]
[1735445609789,0.01653288,95389.0,95388.0,0.42888691]
[1735445609998,0.01653288,95389.0,95388.0,0.42088691]
[1735445610205,0.01653288,95389.0,95388.0,0.42988691]
[1735445610413,0.01653288,95389.0,95388.0,0.42888691]
[1735445610693,0.01653288,95389.0,95388.0,0.54187323]
[1735445611365,0.01653288,95389.0,95388.0,0.53387323]
[1735445611565,0.01653288,95389.0,95388.0,0.52487323]
[1735445611771,0.01653288,95389.0,95388.0,0.53287323]
[1735445612751,8.54e-05,95389.0,95388.0,0.54187323]
[1735445613184,8.54e-05,95389.0,95388.0,0.53387323]
[1735445613429,8.54e-05,95389.0,95388.0,0.55087323]
[1735445613971,8.54e-05,95389.0,95388.0,0.54287323]
[1735445614302,8.54e-05,95389.0,95388.0,0.55187323]
[1735445616201,0.01653271,95389.0,95388.0,0.40880628]
[1735445623020,8.54e-05,95389.0,95388.0,0.40880628]
[1735445626154,0.0165329,95389.0,95388.0,0.40880628]
[1735445629398,0.0165329,95389.0,95388.0,0.39980628]
[1735445629623,0.0165329,95389.0,95388.0,0.38880628]
[1735445629846,0.0165329,95389.0,95388.0,0.39780628]
[1735445630020,0.0165329,95389.0,95388.0,0.39080628]
[1735445631027,0.0165329,95389.0,95388.0,0.46112689]
[1735445631452,0.0165329,95389.0,95388.0,0.39080628]
[1735445631650,0.0165329,95389.0,95388.0,0.50960628]
[1735445631859,0.0165329,95389.0,95388.0,0.39880628]
[1735445633045,8.54e-05,95389.0,95388.0,0.39880628]
[1735445636213,0.01653273,95389.0,95388.0,0.39880628]
[1735445636415,0.01653273,95389.0,95388.0,0.48879985]
[1735445640646,0.01653273,95389.0,95388.0,0.39880628]
[1735445642910,8.54e-05,95389.0,95388.0,0.39880628]
[1735445646137,0.01653278,95389.0,95388.0,0.39080628]
[1735445646361,0.01653278,95389.0,95388.0,0.38180628]
[1735445647039,0.01653278,95389.0,95388.0,0.39080628]
[1735445647557,0.01653278,95389.0,95388.0,0.38880628]
[1735445648152,0.01653278,95389.0,95388.0,0.38180628]
[1735445648501,0.01653278,95389.0,95388.0,0.38980628]
[1735445648784,0.01653278,95389.0,95388.0,0.39880628]
[1735445650145,0.01653278,95389.0,95388.0,0.48879985]
[1735445653019,8.54e-05,95389.0,95388.0,0.48879985]
[1735445653775,8.54e-05,95389.0,95388.0,0.61129985]
[1735445653988,8.54e-05,95389.0,95388.0,0.71528617]
[1735445655019,8.54e-05,95389.0,95388.0,0.69828617]
[1735445655210,8.54e-05,95389.0,95388.0,0.70728617]
[1735445655422,8.54e-05,95389.0,95388.0,0.72416434]
[1735445655600,8.54e-05,95389.0,95388.0,0.72500769]
[1735445655969,8.54e-05,95389.0,95388.0,1.06599742]
[1735445656169,8.54e-05,95389.0,95388.0,1.07499742]
[1735445656392,0.01653112,95389.0,95388.0,1.07499742]
[1735445657128,0.01653112,95389.0,95388.0,1.06515407]
[1735445662983,8.54e-05,95389.0,95388.0,1.06515407]
[1735445663774,8.54e-05,95389.0,95388.0,1.20674326]
[1735445664686,8.54e-05,95389.0,95388.0,0.85787536]
[1735445666205,0.01653109,95389.0,95388.0,0.85787536]
[1735445667342,0.01653109,95389.0,95388.0,0.71628617]
[1735445668847,0.01653109,95389.0,95388.0,0.70728617]
[1735445669055,0.01653109,95389.0,95388.0,0.71628617]
[1735445669361,0.01653109,95389.0,95388.0,0.70728617]
[1735445669802,0.01653109,95389.0,95388.0,0.71628617]
[1735445670589,0.01653109,95389.0,95388.0,0.6262926]
[1735445670791,0.01653109,95389.0,95388.0,0.6172926]
[1735445671058,0.01653109,95389.0,95388.0,0.6262926]
[1735445672102,0.27185727,95404.0,95403.0,0.38180628]
[1735445672314,0.27190807,95404.0,95403.0,0.4857926]
[1735445672536,0.00660051,95404.0,95403.0,0.4857926]
[1735445672749,0.00660051,95404.0,95403.0,0.54246186]
[1735445672977,5.08e-05,95404.0,95403.0,0.54246186]
[1735445673421,5.08e-05,95404.0,95403.0,0.55846186]
[1735445675603,0.01658129,95404.0,95403.0,0.5017926]
[1735445680653,0.01658129,95404.0,95403.0,0.5820926]
[1735445682540,0.0001362,95404.0,95403.0,0.5820926]
[1735445683197,0.0001362,95404.0,95403.0,0.5017926]
[1735445685729,0.01658158,95404.0,95403.0,0.5017926]
[1735445687159,0.01658158,95404.0,95403.0,0.56000186]
[1735445693179,0.0001362,95404.0,95403.0,0.56000186]
[1735445693894,0.0001362,95404.0,95403.0,0.5017926]
[1735445696268,0.01658156,95404.0,95403.0,0.5017926]
[1735445698672,0.01658156,95404.0,95403.0,0.5019634]
[1735445703093,0.0001362,95404.0,95403.0,0.5019634]
[1735445703491,0.0001362,95404.0,95403.0,0.4019634]
[1735445703689,0.0001362,95404.0,95403.0,0.5019634]
[1735445707541,0.01658152,95404.0,95403.0,0.5019634]
[1735445710699,0.01658152,95404.0,95403.0,0.22015712]
[1735445710906,0.01658152,95404.0,95403.0,0.5019634]
[1735445712844,0.0001362,95404.0,95403.0,0.5019634]
[1735445713377,0.0001362,95404.0,95403.0,0.56962444]
[1735445716050,0.01658109,95404.0,95403.0,0.56962444]
[1735445720602,0.01658109,95404.0,95403.0,0.5019634]
[1735445723039,0.0001362,95404.0,95403.0,0.5801634]
[1735445727549,0.01658097,95404.0,95403.0,0.5801634]
[1735445729889,0.01658097,95404.0,95403.0,0.6258634]
[1735445730802,0.01658097,95404.0,95403.0,0.6188634]
[1735445731013,0.01658097,95404.0,95403.0,0.69918444]
[1735445731625,0.01658097,95404.0,95403.0,0.77553142]
[1735445732051,0.01658097,95404.0,95403.0,0.79353142]
[1735445732259,0.01658097,95404.0,95403.0,0.78453142]
[1735445732534,0.01658097,95404.0,95403.0,0.79353142]
[1735445732983,0.0001362,95404.0,95403.0,0.69918444]
[1735445734864,0.0001362,95404.0,95403.0,0.79356871]
[1735445735855,0.0001362,95404.0,95403.0,0.69918444]
[1735445736057,0.01657957,95404.0,95403.0,0.69918444]
[1735445742898,0.0001362,95404.0,95403.0,0.69918444]
[1735445744593,0.01657938,95404.0,95403.0,0.69918444]
[1735445746473,0.01657938,95404.0,95403.0,0.84077363]
[1735445746679,0.01657938,95404.0,95403.0,0.85845198]
[1735445747053,0.01657938,95404.0,95403.0,0.85059502]
[1735445747573,0.01657938,95404.0,95403.0,1.04802874]
[1735445747881,0.01657938,95404.0,95403.0,1.09630686]
[1735445748227,0.01657938,95404.0,95403.0,1.08730686]
[1735445748434,0.01657938,95404.0,95403.0,1.2761773]
[1735445749101,0.01657938,95404.0,95403.0,1.2851773]
[1735445749602,0.01657938,95404.0,95403.0,1.07830686]
[1735445749812,0.01657938,95404.0,95403.0,1.09630686]
[1735445750367,0.01657938,95404.0,95403.0,1.08730686]
[1735445750580,0.01657938,95404.0,95403.0,1.20710686]
[1735445751598,0.01657938,95404.0,95403.0,1.38652955]
[1735445751737,0.01657938,95404.0,95403.0,1.39552955]
[1735445752039,0.01657938,95404.0,95403.0,1.38652955]
[1735445752859,0.0001362,95404.0,95403.0,1.20710686]
[1735445755959,0.016578,95404.0,95403.0,1.20710686]
[1735445756390,0.0001362,95404.0,95403.0,1.20710686]
[1735445758942,0.0001362,95404.0,95403.0,1.34840002]
[1735445759422,0.01657824,95404.0,95403.0,1.34840002]
[1735445762611,0.01657824,95404.0,95403.0,1.00037711]
[1735445762888,0.0001362,95404.0,95403.0,1.00037711]
[1735445764562,0.0001362,95404.0,95403.0,0.96109899]
[1735445764981,0.0001362,95404.0,95403.0,1.00037906]
[1735445766148,0.01657861,95404.0,95403.0,1.00037906]
[1735445766332,0.01657861,95404.0,95403.0,1.34806915]
[1735445768712,0.01657861,95404.0,95403.0,1.20677599]
[1735445770132,0.01657861,95404.0,95403.0,1.1969546]
[1735445770588,0.01657861,95404.0,95403.0,1.20677818]
[1735445773037,0.0001362,95404.0,95403.0,1.20677818]
[1735445773236,0.0001362,95404.0,95403.0,1.19777818]
[1735445773401,0.0001362,95404.0,95403.0,1.20450981]
[1735445773601,0.0001362,95404.0,95403.0,1.22250981]
[1735445773809,0.0001362,95404.0,95403.0,1.19696107]
[1735445774006,0.0001362,95404.0,95403.0,1.38538376]
[1735445775509,0.0001362,95404.0,95403.0,1.18796107]
[1735445775675,0.0001362,95404.0,95403.0,1.19696107]
[1735445775880,0.0001362,95404.0,95403.0,1.18796107]
[1735445776496,0.0001362,95404.0,95403.0,1.19696107]
[1735445776991,0.0001362,95404.0,95403.0,1.20596107]
[1735445777426,0.31707481,95419.0,95418.0,0.46260628]
[1735445777576,0.01819372,95499.0,95419.0,0.38180628]
[1735445777780,0.00059359,95420.0,95419.0,0.4857926]
[1735445778020,0.01703496,95420.0,95419.0,0.4857926]
[1735445779448,0.01703496,95420.0,95419.0,0.4947926]
[1735445780916,0.01703496,95420.0,95419.0,0.5037926]
[1735445781131,0.01703496,95420.0,95419.0,0.56764467]
[1735445783896,0.00059359,95420.0,95419.0,0.56764467]
[1735445786962,0.01703451,95420.0,95419.0,0.56764467]
[1735445787347,0.01703451,95420.0,95419.0,0.54964467]
[1735445787560,0.01703451,95420.0,95419.0,0.56764467]
[1735445787917,0.01703451,95420.0,95419.0,0.55864467]
[1735445788100,0.01703451,95420.0,95419.0,0.56764467]
[1735445788513,0.01703451,95420.0,95419.0,0.55864467]